Cogmind - Beta 15 @@@ ROGUE MODE // 2025.06.25 @ 00:16:58 Player: Cracklepappy Result: Destroyed by D-53 Grenadier with Mini Grenade Launcher Performance ------------- Evolutions (0) 0 Regions Visited (2) 400 Robots Destroyed (44) 220 Value Destroyed (795) 795 Prototype IDs (2) 40 Alien Tech Used (0) 0 Bonus (112) 112 TOTAL SCORE: 1567 Bonus ------- Follower Combat Kills 112 Cogmind --------- Core Integrity 0/250 Matter 300/300 Energy 160/160 System Corruption 0% Temperature Cool (39) Movement Treading (320) Ox2 Location -10/Mines Parts ------- > --- POWER (1) -------- Light Nuclear Core > --- PROPULSION (2) --- Light Treads Light Treads > --- UTILITY (2) ------ Improved Heat Sink Huge Storage Unit > --- WEAPON (2) ------- Advanced Beam Cannon Advanced Beam Cannon > --- INVENTORY (25) --- Light Treads Light Treads Light Treads Armored Wheel Armored Wheel Armored Wheel Armored Wheel Improved Heat Sink High-capacity Matter Pod (200) Seismic Detector Light Armor Plating Light Armor Plating Spread Laser Spread Laser Advanced Beam Cannon Heavy Assault Rifle Autogun Autogun Autogun Autogun Grenade Launcher Mace Mace Mace Mace Peak State ------------ > --- POWER ------------ Light Nuclear Core > --- PROPULSION ------- Armored Wheel Armored Wheel > --- UTILITY ---------- Improved Heat Sink Huge Storage Unit > --- WEAPON ----------- Advanced Beam Cannon Advanced Beam Cannon > --- INVENTORY -------- Light Treads Light Treads Light Treads Light Treads Armored Wheel Armored Wheel Improved Heat Sink High-capacity Matter Pod Seismic Detector Utility Shielding Spread Laser Spread Laser Spread Laser Spread Laser Advanced Beam Cannon Advanced Beam Cannon Autogun Autogun Autogun Autogun Grenade Launcher Mace Mace Mace Mace [Rating: 21] Favorites ----------- Power Light Nuclear Core Engine Ion Engine Power Core Light Nuclear Core Propulsion Light Treads Treads Light Treads Wheel Armored Wheel Utility Huge Storage Unit Device Improved Heat Sink Storage Huge Storage Unit Weapon Advanced Beam Cannon Energy Cannon Advanced Beam Cannon Ballistic Gun Assault Rifle Build | -11 -10 -10 ------- Run | Yrd Mat Min Slots Evolved . | . . . Power . | . . . Propulsion . | . . . Utility . | . . . Weapon . | . . . Parts Attached 22 | 7 11 4 Power 2 | 1 1 . Engine 1 | 1 . . Core 1 | . 1 . Reactor . | . . . Propulsion 8 | 2 3 3 Treads 6 | 2 2 2 Leg . | . . . Wheel 2 | . 1 1 Hover . | . . . Flight . | . . . Utility 6 | 2 4 . Device 2 | 1 1 . Storage 4 | 1 3 . Processor . | . . . Hackware . | . . . Protection . | . . . Artifact . | . . . Weapon 6 | 2 3 1 Energy Gun . | . . . Energy Cannon 3 | . 2 1 Ballistic Gun 3 | 2 1 . Ballistic Cannon . | . . . Launcher . | . . . Special Weapon . | . . . Impact Weapon . | . . . Slashing Weapon . | . . . Piercing Weapon . | . . . Special Melee Weapon . | . . . Unidentified Prototypes . | . . . Parts Lost 2 | . 2 . Power 1 | . 1 . Propulsion 1 | . 1 . Utility . | . . . Weapon . | . . . Highest Loss Streak 2 | . 2 . To Critical Strikes . | . . . Average Backups 20 | 6 20 25 Power . | . . . Propulsion 5 | 3 5 6 Utility 3 | . 4 4 Weapon 11 | 1 10 14 Tool/Special . | . . . Unused Backups 34 | . 15 19 Power 1 | . 1 . Propulsion 7 | . 5 2 Utility 4 | . 1 3 Weapon 22 | . 8 14 Tool/Special . | . . . Average Slot Usage (%) 99 | . 99 100 Engine 6 | . 8 . Core 7 | . 5 14 Treads 26 | . 26 27 Wheel 1 | . 1 1 Device 9 | . 8 14 Storage 18 | . 19 14 Energy Cannon 19 | . 17 28 Ballistic Gun 8 | . 10 . Peak Build Rating 21 | 7 20 21 Average Rating 15 | 5 14 19 On Entrance 8 | . 7 19 Naked Turns . | . . . Heaviest Build 94 | 14 94 94 Greatest Support 40 | 40 40 40 Greatest Overweight (x) 7 | . 7 3 Average Overweight (x) 2 | . 2 2 Largest Inventory Capacity 25 | 8 25 25 Average Capacity 22 | 7 22 25 Most Carried 25 | 8 25 25 Average Carried 20 | 6 20 24 Final Capacity 25 | 8 25 25 Final Carried 25 | 8 25 25 Class Distribution -------------------- 92% | Mutant 7% | Scavenger-Mutant Dominant Class ---------------- Mutant | -10/Materials Mutant | -10/Mines Resources | -11 -10 -10 ----------- Run | Yrd Mat Min Matter Collected 1006 | 415 511 80 Remotely . | . . . Salvage Created 1465 | 242 1068 155 Parts 91 | 20 65 6 Haulers Intercepted 2 | . 2 . Recyclers Shooed 2 | . 1 1 Parts Field Recycled . | . . . Retrieved Matter . | . . . Parts Self-Destructed . | . . . Prevented . | . . . Kills | -11 -10 -10 ------- Run | Yrd Mat Min Combat Hostiles Destroyed 21 | . 20 1 Guns 10 | . 10 . Cannons 11 | . 10 1 Classes Destroyed 9 | 3 6 . Worker 4 | 2 2 . Builder 1 | . 1 . Tunneler 7 | 6 1 . Hauler 2 | . 2 . Recycler 3 | 1 1 1 Operator 2 | . 2 . Watcher 3 | . 3 . Swarmer 6 | . 6 . Grunt 16 | . 14 2 Best Kill Streak 4 | 4 4 1 Combat Bots Only 4 | . 4 1 Max Kills in Single Turn 2 | 2 1 1 Gunslinging . | . . . Exploded . | . . . Melee . | . . . Uniques/NPCs Destroyed . | . . . Combat | -11 -10 -10 -------- Run | Yrd Mat Min Hostile Shots Fired 126 | . 105 21 Missed 30 | . 26 4 Hits 96 | . 79 17 Projectile 96 | . 79 17 AOE 4 | . . 4 Critical Strikes 1 | . 1 . Damage Taken 1287 | . 879 408 Core 254 | . 154 100 Absorbed by Shields . | . . . Regen/Repaired (Parts) 157 | . 157 . Core Remaining (%) 100 | 100 . . Volleys Fired 108 | 18 79 11 Largest 2 | 2 2 2 Hottest 136 | 40 136 136 Shots Fired 216 | 36 158 22 Gun 128 | 36 92 . Cannon 88 | . 66 22 Launcher . | . . . Special . | . . . Kinetic 128 | 36 92 . Thermal 88 | . 66 22 Explosive . | . . . Electromagnetic . | . . . Robot Hit Streak 9 | 3 9 8 Robot Miss Streak 3 | 3 3 2 Penetration Max . | . . . Secondary Targets 2 | . 2 . Max Gunslinging Chain 1 | . 1 . Shots Hit Robots 131 | 17 98 16 Core Hits 60 | 11 46 3 Critical Kills . | . . . Critical Parts Destroyed . | . . . Critical Strikes . | . . . Melee Attacks . | . . . Impact . | . . . Slashing . | . . . Piercing . | . . . Sneak Attacks . | . . . Combat Hostiles . | . . . Follow-up Attacks . | . . . Damage Inflicted 2160 | 195 1570 395 Guns 958 | 195 763 . Cannons 1154 | . 785 369 Explosions . | . . . Melee . | . . . Ramming 48 | . 22 26 Kinetic 958 | 195 763 . Thermal 1154 | . 785 369 Explosive . | . . . Electromagnetic . | . . . Impact . | . . . Slashing . | . . . Piercing . | . . . Highest Corruption . | . . . Average Corruption . | . . . Corruption Purged . | . . . Corruption Blocked . | . . . Overload Shots . | . . . Overflow Damage 31 | . 13 18 Projectiles 31 | . 13 18 Explosions . | . . . Melee . | . . . Knockbacks . | . . . Impact . | . . . Kinetic . | . . . Secondary . | . . . Self-Inflicted Damage 7 | . 7 . Shots . | . . . Rammed 8 | . 3 5 Targets Rammed 8 | . 3 5 Kicked . | . . . Crushed . | . . . Highest Temperature 291 | . 240 291 Average Temperature 67 | . 56 101 Received Heat Transfer 432 | . 339 93 Siege Activations . | . . . Martial Activations . | . . . Shielding Activations . | . . . Robots Disrupted . | . . . Combat Hostiles . | . . . Robots Corrupted . | . . . Combat Hostiles . | . . . Parts Fried . | . . . Impact Corruptions . | . . . Robots Melted . | . . . Combat Hostiles . | . . . Parts Melted 6 | . 4 2 Heat Transferred 2072 | . 1406 666 Parts Sabotaged . | . . . Parts Stolen . | . . . Parts Stripped . | . . . Power Chain Reactions . | . . . Alert | -11 -10 -10 ------- Run | Yrd Mat Min Maximum Alert Level 1 | . 1 . Low Security (%) 92 | 100 89 100 Level 1 7 | . 10 . Level 2 . | . . . Level 3 . | . . . Level 4 . | . . . Level 5 . | . . . High Security . | . . . Max Security . | . . . Peak Influence 245 | 10 245 90 Initial 90 | . . 90 Average 53 | 1 67 21 Influence Increases 945 | 45 712 188 Destroy 0b10 Robot/C 540 | . 400 140 Destroy 0b10 Robot/NC 110 | 45 60 5 Destroy Leader 130 | . 110 20 Allied During Kill 23 | . . 23 Successful Hack 34 | . 34 . Select Force Hacks 60 | . 60 . Destroy Structure 3 | . 3 . Lose Combat Pursuer 45 | . 45 . Influence Decreases 945 | 45 479 421 Entered New Map 143 | . . 143 Time Decay 769 | 45 459 265 Lost Part 20 | . 20 . Lost Ally 13 | . . 13 Squads Dispatched 4 | . 4 . Investigation 2 | . 2 . Extermination . | . . . Reinforcement 2 | . 2 . Assault . | . . . Garrison . | . . . Intercept . | . . . Searches Triggered . | . . . Construction Impeded . | . . . Haulers Reinforced . | . . . Active Scanning Responses . | . . . Cargo Convoy Interrupts . | . . . Stealth | -11 -10 -10 --------- Run | Yrd Mat Min Distress Signals . | . . . Communications Jammed . | . . . Distress Signals . | . . . Times Spotted 34 | . 27 7 Peak Tracking Total 3 | . 3 2 Tactical Retreats 2 | . 2 . Traps | -11 -10 -10 ------- Run | Yrd Mat Min Traps Triggered . | . . . Indirectly . | . . . Trap Hack Attempts . | . . . Triggered . | . . . Disarmed . | . . . Reprogrammed . | . . . Reused . | . . . Traps Extracted . | . . . Installed . | . . . Triggered . | . . . Machines | -11 -10 -10 ---------- Run | Yrd Mat Min Machines Disabled . | . . . Max in Single Turn . | . . . Machines Repaired . | . . . Machines Dismantled . | . . . Machines Sabotaged . | . . . Overloaded Fab Kills . | . . . Hacking | -11 -10 -10 --------- Run | Yrd Mat Min Machines Accessed 9 | . 9 . Terminals 6 | . 6 . Fabricators . | . . . Repair Stations 1 | . 1 . Recycling Units 2 | . 2 . Scanalyzers . | . . . Garrison Access . | . . . Total Hacks 22 | . 22 . Successful 12 | . 12 . Failed 10 | . 10 . Catastrophic 4 | . 4 . Database Lockouts . | . . . Manual 8 | . 8 . Terminals 15 | . 15 . Fabricators . | . . . Repair Stations 5 | . 5 . Recycling Units 2 | . 2 . Scanalyzers . | . . . Garrison Access . | . . . Terminal Hacks 4 | . 4 . Robot Schematic 1 | . 1 . Prototype ID Bank 1 | . 1 . Locate Traps 2 | . 2 . Fabricator Hacks . | . . . Repair Station Hacks 4 | . 4 . Scan Component 2 | . 2 . Repair 2 | . 2 . Recycling Unit Hacks . | . . . Scanalyzer . | . . . Garrison Access Hacks . | . . . Unauthorized Hacks 4 | . 4 . Terminals 2 | . 2 . Skim 2 | . 2 . Fabricators . | . . . Repair Stations . | . . . Recycling Units 2 | . 2 . Tunnel 2 | . 2 . Scanalyzers . | . . . Garrison Access . | . . . Data Cores Recovered . | . . . Used . | . . . Hacking Detections 7 | . 7 . Full Trace Events 1 | . 1 . Feedback Events . | . . . Feedback Blocked . | . . . Robot Schematics Acquired 1 | . 1 . Robots Built . | . . . Authchips . | . . . Time . | . . . Total Robot Build Rating . | . . . Part Schematics Acquired . | . . . Parts Built . | . . . Authchips . | . . . Time . | . . . Total Part Build Rating . | . . . Parts Repaired 2 | . 2 . Time 52 | . 52 . Parts Recycled . | . . . Recycled Matter . | . . . Retrieved Matter . | . . . Retrieved Components . | . . . Parts Scanalyzed . | . . . Part Schematics Acquired . | . . . Parts Damaged . | . . . Bothacking | -11 -10 -10 ------------ Run | Yrd Mat Min Used RIF Installer . | . . . Robots Hacked . | . . . Non-combat . | . . . Combat . | . . . Robot Hacks Applied . | . . . Relay Couplers Released . | . . . Fabnet Peak Effective % . | . . . Robots Rewired . | . . . Allies Hacked . | . . . Hacks Repelled . | . . . Allies | -11 -10 -10 -------- Run | Yrd Mat Min Total Allies 3 | . . 3 Largest Group 3 | . . 3 Highest-Rated Group 40 | . . 40 Highest-Rated Ally 16 | . . 16 Total Orders 2 | . . 2 STAY 1 | . . 1 FOLLOW 1 | . . 1 Ally Attacks 37 | . . 37 Total Damage 376 | . . 376 Kills 6 | . . 6 Allies Corrupted . | . . . Allies Melted . | . . . Intel | -11 -10 -10 ------- Run | Yrd Mat Min Active Infowar (turns) 20 | 20 . . Seismic 20 | 20 . . Robot Analysis Total . | . . . Derelict Logs Recovered . | . . . Drone Launches . | . . . Drone Recoveries . | . . . Exploration | -11 -10 -10 ------------- Run | Yrd Mat Min Turns Passed 4668 | 263 3294 1111 Spaces Moved 1521 | 125 1093 303 Core 4 | 4 . . Treads 1321 | 121 926 274 Legs . | . . . Wheels 196 | . 167 29 Hover . | . . . Flight . | . . . Fastest Speed 50 | 50 160 135 Average Speed 263 | 156 265 302 Slowest Speed 320 | 160 320 320 Overloaded Moves . | . . . Propulsion Burnouts . | . . . Robots Hopped . | . . . Potential Cave-ins . | . . . Cave-ins Triggered . | . . . Exploration Rate (%) 54 | 6 97 61 Regions Visited 2 Branch Regions 1 Pre-discovered Areas 2 | . 2 . Known Exits Taken . | . . . Unknown Exits Taken 2 | 1 1 . Scrap Searched 1 | . . 1 Spaces Dug . | . . . Terrain Destroyed . | . . . Melee . | . . . Projectile . | . . . AOE . | . . . Terrain Rammed . | . . . Walls Destroyed . | . . . Machines Disabled . | . . . Actions | -11 -10 -10 --------- Run | Yrd Mat Min Total 1955 | 157 1334 464 Wait 207 | . 79 128 Move 1519 | 124 1092 303 Hop . | . . . Pick Up 54 | 8 42 4 Fast Attach 9 | 7 2 . Attach 4 | . 3 1 Detach . | . . . Swap 16 | . 9 7 Drop 30 | . 25 5 Fire 108 | 18 79 11 Melee . | . . . Ram 1 | . 1 . Kick . | . . . Crush 7 | . 2 5 Escape Stasis . | . . . Rewire . | . . . Trap . | . . . Miscellaneous . | . . . Route ------- -11/Scrapyard -10/Materials (discovered 4 exits: [*Mat x3] / [*Min]) -10/Mines (discovered 2 exits: [*Mat] / [*Sub]) History --------- Turn | Location | Event 45 | -11/Scrapyard | Discovered new exit (range 15) 264 | -11/Scrapyard | Entered Materials 304 | -10/Materials | Build established: Mutant 1227 | -10/Materials | Repaired Assault Rifle 1254 | -10/Materials | Repaired Lgt. Treads 1313 | -10/Materials | Discovered new exit (range 5) 1654 | -10/Materials | Discovered new exit (range 5) 2291 | -10/Materials | Discovered new exit (range 16) 2498 | -10/Materials | Discovered new exit (range 7) 2903 | -10/Materials | Core integrity fell below 50% 3558 | -10/Materials | Entered Mines 3568 | -10/Mines | Assisted by bots powering up and referring to "LRC-V3" 3978 | -10/Mines | Discovered new exit (range 8) 4283 | -10/Mines | Assembled infested the area 4288 | -10/Mines | Assisted by a Guerilla fighting off Assembled 4322 | -10/Mines | Discovered new exit (range 6) 4549 | -10/Mines | Core integrity fell below 20% 4636 | -10/Mines | Build established: Scavenger-Mutant 4669 | -10/Mines | Destroyed by D-53 Grenadier with Mini Grenade Launcher Last Messages --------------- 04609_ K-01 Serf collects debris. 04614_ Dropped Adv. Beam Cannon. 04615_ K-01 Serf collects debris. 04616_ Acquired Hvy. Assault Rifle. 04618_ K-01 Serf collects debris. 04639_ Dropped Utility Shielding. 04640_ Acquired Lgt. Armor Plating. 04647_ Dropped Spread Laser. 04648_ Acquired Lgt. Armor Plating. 04652_ Acquired Lgt. Treads. 04653_ Acquired 22 matter. 04657_ R-06 Scavenger collects Beam Rifle. 04662_ R-06 Scavenger collects Com. Wheel. 04663_ Slammed into K-01 Serf. 04664_ R-06 Scavenger destroyed. 04664_ Trooper 1a destroyed. 04664_ K-01 Serf destroyed. 04664_ K-01 Serf collects debris. 04666_ Trooper 1b destroyed. 04668_ K-01 Serf destroyed. Map ----- +----------------------------------------------------+ | #???# ##????????# ##### #?????????? | | #???# #????????# #???# ##?????????? | | #???# #????????# #???# #??????????? | | #?###### ##????????# #???# < ##?????????? | | #?# ##?????????# ##### ##????????? | | #?# ##?????????# #????????? | | #?## ###???????# ##### #????????? | | #??##### ##??????# #???### ##????????? | | #??????### ######## #?????# ##?????????? | | #????????#### ## #?????# ##??????????? | | ############# ### ####### #???????????? | | % % % ##?# ######## ####????????? | | ############# #??# #??????# #### % #????????? | | ??????????### #### #??????? #??# % #????????? | | ?????????## ## ##???### #??#### ##???????? | | ?????????# #??## ##???## ##??????? | | ?????????# ### ##??# ##?????? | | ?????????## #??# ###???? | | ??????????## #??## ##??? | | ???????????## #### ## d #???## #??? | | ????????????## ##???#####d k #?????## #??? | | ?????????????####???### # ##??????# ##??? | | ???????????????????## ! #???????# #???? | | ???????????????????#"![ [ ##?????## ##???? | | ???????????????????# != [% ####?## #????? | | ???????????????????# [[ %@% ### ##????? | | ???????????????????#"!!=% * #?????? | | ???????????????????##!] * [ #?????? | | ????????????????????## * =## #?????? | | ?????????????????????###!% #### #?????? | | ??????????????????????# = ##?## ##?????? | | ??????????????????????# ####?## #??????? | | ????????????????????? ##???## ##??????? | | ??????????????????? ?????# = #???????? | | ??????????????????# #####?????# [ ##???????? | | ??????????????????#???????????# %=#####????????? | | ??????????????????????????????##% ##????????????? | | ???????????????????????????????# #?????????????? | | ???????????????????????????????# #?????????????? | | ???????????????????????????????# #?????????????? | | ???????????????????????????????# #?????????????? | | ???????????????????????????###?# #?????????????? | | ??????????????????????????## ### #?????????????? | | ??????????????????????????# ## #?????????????? | | ??????????????????????????# #?????????????? | | ????????????????????????## ### #?????????????? | | ????????????????????##### #??# #??#######????? | | ???????????????????## #???# #### #????? | | ???????????????????# #????# / #????? | | ???????????????????# #????# / #????? | +----------------------------------------------------+ Best States ------------- Heat Dissipation 39 Energy Generation 14 Energy Capacity 250 Matter Stores 400 Matter Capacity 400 Sight Range 16 Terrain Scan Density 10 Evasion (%) 40 Recoil Reduction 2 Item Schematics ----------------- None Robot Schematics ------------------ M-13 Machinist | -10/Materials | Hacked Fabricated ------------ Nothing Repaired ---------- Assault Rifle | 28% | -10/Materials Lgt. Treads | 39% | -10/Materials Alien Tech Used ----------------- None Achievements -------------- None Challenges ------------ None Game ------ Seed TachyonHelicalChainsaw Manual? 0 Play Time 00:25:39 Cumulative 964.3 hours Start 2025.06.24 @ 23:43:02 End 2025.06.25 @ 00:16:58 Sessions 1 Manual Loads 0 Difficulty Rogue Special Mode None Game No. 495 Rogue 495 Adventurer 0 Explorer 0 Win Type - Total 23 Types 10/4/3/0/1/1/2/2/0/0 Lore% 85 Gallery% 87 Achievement% 83 Wizard Run 0 Options --------- Layout 0 ASCII 0 Keyboard 0 Movement Numpad Keybinds 0 Fullscreen 2 Font 24/Smallcaps Map View 76x50 Zoom Use 0% Tactical HUD 1 Map Filters NONE Filters SHIFT_HUE(315) Steam 1 RUN: be5c5818-46e8-4c10-bff0-047c6cb99af4